fUST/lending_fUST_20250707
["ID","MTS","AMOUNT","RATE_DAILY","PERIOD"]
[370107706,1751887841623,-151.0,0.00021973,2]
[370107707,1751887841640,-151.53734073,0.00021973,2]
[370107708,1751887841652,-151.0,0.00021973,2]
[370107709,1751887841662,-200.31382204,0.00021973,2]
[370107710,1751887841672,-151.0,0.00021973,2]
[370107711,1751887841681,-151.0,0.00021973,2]
[370107712,1751887841691,-460.0,0.00021983,2]
[370107713,1751887841699,-460.0,0.00021983,2]
[370107714,1751887841709,-460.0,0.00021986,2]
[370107715,1751887841719,-207.4,0.00022,2]
[370107716,1751887841728,-5000.0,0.00022,2]
[370107717,1751887841738,-690.642,0.00022,2]
[370107718,1751887841748,-500.0,0.00022,2]
[370107719,1751887841757,-1500.0,0.00022,2]
[370107720,1751887841768,-500.0,0.00022,2]
[370107721,1751887841777,-1500.0,0.00022,2]
[370107722,1751887841787,-216.53714914,0.00022,2]
[370107723,1751887841796,-500.0,0.00022,2]
[370107724,1751887841805,-1500.0,0.00022,2]
[370107725,1751887841815,-500.0,0.00022,2]
[370107726,1751887841824,-1500.0,0.00022,2]
[370107727,1751887841834,-500.0,0.00022,2]
[370107728,1751887841843,-1500.0,0.00022,2]
[370107729,1751887841852,-500.0,0.00022,2]
[370107730,1751887841862,-1500.0,0.00022,2]
[370107731,1751887841871,-1500.0,0.00022,2]
[370107732,1751887841880,-500.0,0.00022,2]
[370107733,1751887841889,-1500.0,0.00022,2]
[370107734,1751887841899,-500.0,0.00022,2]
[370107735,1751887841908,-500.0,0.00022,2]
[370107736,1751887841917,-1500.0,0.00022,2]
[370107737,1751887841926,-500.0,0.00022,2]
[370107738,1751887841936,-1500.0,0.00022,2]
[370107739,1751887841945,-500.0,0.00022,2]
[370107740,1751887841955,-1500.0,0.00022,2]
[370107741,1751887841964,-151.0,0.00022,2]
[370107742,1751887841973,-151.0,0.00022,2]
[370107743,1751887841982,-151.0,0.00022,2]
[370107744,1751887841992,-151.0,0.00022,2]
[370107745,1751887842001,-151.0,0.00022,2]
[370107746,1751887842010,-151.0,0.00022,2]
[370107747,1751887842020,-151.0,0.00022,2]
[370107748,1751887842029,-151.0,0.00022,2]
[370107749,1751887842039,-151.0,0.00022,2]
[370107750,1751887842048,-151.0,0.00022,2]
[370107751,1751887842057,-151.0,0.00022,2]
[370107752,1751887842067,-151.0,0.00022,2]
[370107753,1751887842076,-151.0,0.00022,2]
[370107754,1751887842085,-151.0,0.00022,2]
[370107755,1751887842095,-151.0,0.00022,2]
[370107756,1751887842104,-151.0,0.00022,2]
[370107757,1751887842113,-151.0,0.00022,2]
[370107758,1751887842123,-151.0,0.00022,2]
[370107759,1751887842132,-151.0,0.00022,2]
[370107760,1751887842142,-151.0,0.00022,2]
[370107761,1751887842151,-151.0,0.00022,2]
[370107762,1751887842160,-151.0,0.00022,2]
[370107763,1751887842172,-151.0,0.00022,2]
[370107764,1751887842181,-151.0,0.00022,2]
[370107765,1751887842191,-151.0,0.00022,2]
[370107766,1751887842200,-151.0,0.00022,2]
[370107767,1751887842209,-151.0,0.00022,2]
[370107768,1751887842219,-151.0,0.00022,2]
[370107769,1751887842231,-151.0,0.00022,2]
[370107770,1751887842241,-151.0,0.00022,2]
[370107772,1751887842250,-151.0,0.00022,2]
[370107773,1751887842265,-151.0,0.00022,2]
[370107774,1751887842274,-170.0,0.00022,2]
[370107775,1751887842284,-40158.12,0.00022,7]
[370107776,1751887842293,-151.0,0.00022,3]
[370107777,1751887842303,-151.0,0.00022,3]
[370107778,1751887842314,-2289.95,0.00022,7]
[370107780,1751887842324,-1812.59,0.00022,7]
[370107782,1751887842334,-160.0,0.00022,7]
[370107783,1751887842343,-214.06929976,0.00022,7]
[370107784,1751887842353,-848.27993403,0.00022,7]
[370107785,1751887842362,-500.0,0.00022,2]
[370107786,1751887842372,-186.53348416,0.00022,2]
[370107787,1751887842382,-151.0,0.00022,2]
[370107788,1751887842391,-500.0,0.00022008,2]
[370107789,1751887842402,-500.0,0.00022028,2]
[370107790,1751887842412,-151.0,0.00022028,2]
[370107791,1751887842422,-179.511555,0.00022037,2]
[370107792,1751887842432,-500.0,0.00022055,2]
[370107794,1751887842441,-151.0,0.00022055,2]
[370107795,1751887842451,-500.0,0.00022083,2]
[370107796,1751887842461,-151.0,0.00022083,2]
[370107797,1751887842470,-40845.28000266,0.000221,2]
[370107798,1751887842480,-500.0,0.0002211,2]
[370107799,1751887842489,-245.0,0.0002211,2]
[370107800,1751887842499,-179.511555,0.00022133,2]
[370107802,1751887842508,-500.0,0.00022137,2]
[370107804,1751887842518,-256.73739429,0.00022165,2]
[370107805,1751887842527,-1233.25,0.00022191,2]
[370107807,1751887842537,-460.0,0.00022191,2]
[370107810,1751887842547,-460.0,0.00022191,2]
[370107812,1751887842556,-179.511555,0.00022229,2]
[370107814,1751887842565,-203.44881739,0.00022233,6]
[370107816,1751887842575,-460.0,0.00022257,2]
[370107818,1751887842584,-460.0,0.00022257,2]
[370107821,1751887842594,-460.0,0.0002226,2]
[370107842,1751887842603,-179.511555,0.00022325,2]
[370107846,1751887842787,-1862.67,0.00022413,6]
[370107848,1751887842798,-179.511555,0.00022421,2]
[370107850,1751887842807,-1233.25,0.00022465,2]
[370107852,1751887842817,-435.46905817,0.00022465,2]
[370107854,1751887842827,-460.0,0.00022465,2]
[370107856,1751887842836,-1862.67,0.00022513,3]
[370107858,1751887842851,-179.511555,0.00022517,2]
[370107860,1751887842861,-460.0,0.00022531,2]
[370107862,1751887842870,-251.74879828,0.00022531,2]
[370107864,1751887842880,-603.12,0.00022534,2]
[370107866,1751887842889,-1000.0,0.00022556,2]
[370107868,1751887842899,-203.44881739,0.00022567,7]
[370107870,1751887842908,-306.017003,0.00022603,2]
[370107872,1751887842917,-179.511555,0.00022613,2]
[370107874,1751887842926,-1862.67,0.00022613,2]
[370107876,1751887842935,-914.09317255,0.00022627,2]
[370107878,1751887842945,-179.511555,0.00022709,2]
[370107880,1751887842955,-1862.67,0.00022713,5]
[370107882,1751887842964,-1233.25,0.00022739,2]
[370107884,1751887842973,-460.0,0.00022739,2]
[370107886,1751887842982,-641.00950648,0.00022783,2]
[370107889,1751887842992,-255.0,0.00022783,2]
[370107891,1751887843001,-255.0,0.00022783,2]
[370107892,1751887843010,-255.0,0.00022783,2]
[370107895,1751887843020,-255.0,0.00022783,2]
[370107897,1751887843030,-255.0,0.00022783,2]
[370107899,1751887843039,-220.68884846,0.00022783,2]
[370107901,1751887843048,-460.0,0.00022805,2]
[370107903,1751887843058,-179.511555,0.00022805,2]
[370107904,1751887843066,-1862.67,0.00022813,3]
[370107906,1751887843075,-203.44881739,0.000229,8]
[370107908,1751887843085,-1862.67,0.00022913,4]
[370107910,1751887843094,-160.0,0.00023,2]
[370107912,1751887843103,-330.67695274,0.00023,2]
[370107914,1751887843113,-1233.25,0.00023013,2]
[370107917,1751887843122,-320.46375407,0.00023013,2]
[370107918,1751887843131,-1862.67,0.00023013,3]
[370107921,1751887843141,-170.0,0.00023014,7]
[370107923,1751887843150,-460.0,0.00023079,2]
[370107925,1751887843161,-837.79946008,0.000231,3]
[370107927,1751887843170,-160.0,0.000231,3]
[370107929,1751887843179,-160.0,0.000231,3]
[370107931,1751887843189,-230.48668418,0.000231,3]
[370107933,1751887843198,-1500.0,0.00023104,2]
[370107935,1751887843207,-1862.67,0.00023113,7]
[370107937,1751887843216,-1862.67,0.00023213,5]
[370107938,1751887843225,-203.44881739,0.00023233,8]
[370107941,1751887843239,-1233.25,0.00023287,2]
[370107943,1751887843248,-153.0,0.00023293,2]
[370107945,1751887843258,-1862.67,0.00023313,3]
[370107947,1751887843268,-460.0,0.00023353,2]
[370107949,1751887843278,-215.0738,0.00023369,2]
[370107951,1751887843292,-1812.59,0.000234,7]
[370107953,1751887843302,-160.0,0.000234,3]
[370107955,1751887843312,-214.06929976,0.000234,3]
[370107957,1751887843322,-848.27993403,0.000234,3]
[370107959,1751887843331,-1862.67,0.00023413,7]
[370107961,1751887843341,-914.09317255,0.00023436,2]
[370107963,1751887843351,-506.7210409,0.00023466,2]
[370107965,1751887843361,-366.6942869,0.00023466,2]
[370107967,1751887843371,-848.27993403,0.000235,7]
[370107969,1751887843380,-159.266168,0.00023507,2]
[370107970,1751887843389,-1862.67,0.00023513,4]
[370107971,1751887843399,-1233.25,0.00023561,2]
[370107972,1751887843408,-203.44881739,0.00023567,9]
[370107973,1751887843418,-1862.67,0.00023613,3]
[370107974,1751887843427,-460.0,0.00023627,2]
[370107975,1751887843436,-1004.76527195,0.00023652,2]
[370107976,1751887843446,-1000.0,0.00023702,5]
[370107977,1751887843455,-1862.67,0.00023713,3]
[370107978,1751887843465,-200.94537279,0.00023781,2]
[370107979,1751887843475,-2289.95,0.000238,7]
[370107980,1751887843485,-1862.67,0.00023813,4]
[370107981,1751887843494,-1233.25,0.00023835,2]
[370107982,1751887843503,-2153.0,0.00023857,2]
[370107983,1751887843513,-646.0,0.00023857,2]
[370107984,1751887843522,-406.0,0.00023857,2]
[370107985,1751887843532,-429.128,0.00023857,2]
[370107986,1751887843542,-967.0,0.00023857,2]
[370107987,1751887843552,-200.94537279,0.0002389,2]
[370107988,1751887843564,-2105.94819464,0.000239,2]
[370107989,1751887843574,-203.44881739,0.000239,10]
[370107990,1751887843594,-460.0,0.00023901,2]
[370107992,1751887843604,-1862.67,0.00023913,6]
[370107994,1751887843614,-150.0,0.00023974,2]
[370107996,1751887843624,-150.0,0.00023974,2]
[370107998,1751887843634,-200.94537279,0.00024,2]
[370108000,1751887843644,-215.21338352,0.00024,7]
[370108001,1751887843654,-215.21338352,0.00024,7]
[370108003,1751887843664,-160.0,0.00024,7]
[370108005,1751887843674,-160.0,0.00024,7]
[370108006,1751887843683,-160.0,0.00024,7]
[370108007,1751887843693,-837.79946008,0.00024,7]
[370108009,1751887843703,-160.0,0.00024,7]
[370108011,1751887843712,-160.0,0.00024,7]
[370108013,1751887843722,-230.48668418,0.00024,7]
[370108015,1751887843731,-1862.67,0.00024013,2]
[370108017,1751887843741,-151.0,0.00024049,7]
[370108018,1751887843751,-151.0,0.000241,7]
[370108021,1751887843760,-151.0,0.000241,3]
[370108022,1751887843770,-151.0,0.000241,3]
[370108024,1751887843780,-1233.25,0.00024109,2]
[370108026,1751887843790,-200.94537279,0.0002411,2]
[370108028,1751887843800,-1862.67,0.00024113,3]
[370108030,1751887843810,-460.0,0.00024175,2]
[370108032,1751887843820,-1862.67,0.00024213,3]
[370108035,1751887843831,-203.44881739,0.00024233,10]
[370108037,1751887843840,-691.0,0.00024237,2]
[370108039,1751887843850,-914.09317255,0.00024244,2]
[370108041,1751887843859,-200.94537279,0.00024247,2]
[370108043,1751887843869,-40158.12,0.000243,7]
[370108045,1751887843879,-89715.89,0.000243,2]
[370108047,1751887843888,-151.0,0.000243,6]
[370108049,1751887843898,-151.0,0.000243,7]
[370108051,1751887843907,-151.0,0.000243,7]
[370108053,1751887843916,-151.0,0.000243,7]
[370108055,1751887843925,-151.0,0.000243,7]
[370108057,1751887843935,-151.0,0.000243,7]
[370108059,1751887843944,-151.0,0.000243,7]
[370108061,1751887843955,-151.0,0.000243,7]
[370108063,1751887843964,-151.0,0.000243,7]
[370108065,1751887843974,-234.914972,0.000243,7]
[370108067,1751887843984,-151.0,0.000243,7]
[370108069,1751887843993,-151.745852,0.000243,7]
[370108071,1751887844003,-151.0,0.000243,7]
[370108073,1751887844012,-596.114482,0.000243,7]
[370108075,1751887844021,-596.114482,0.000243,7]
[370108077,1751887844031,-239.492046,0.000243,7]
[370108079,1751887844041,-151.0,0.000243,7]
[370108080,1751887844050,-239.492046,0.000243,7]
[370108081,1751887844059,-151.0,0.000243,7]
[370108082,1751887844068,-151.0,0.000243,7]
[370108083,1751887844078,-215.21338352,0.000243,7]
[370108084,1751887844087,-151.0,0.000243,7]
[370108085,1751887844096,-151.0,0.000243,6]
[370108086,1751887844105,-223.597279,0.000243,7]
[370108087,1751887844115,-848.27993403,0.000243,7]
[370108088,1751887844124,-223.597279,0.000243,7]
[370108089,1751887844133,-548.841758,0.000243,2]
[370108090,1751887844142,-548.841758,0.000243,2]
[370108091,1751887844152,-151.0,0.000243,7]
[370108092,1751887844161,-837.79946008,0.000243,7]
[370108093,1751887844171,-151.0,0.000243,7]
[370108094,1751887844180,-151.0,0.000243,7]
[370108095,1751887844189,-153.042549,0.000243,7]
[370108096,1751887844198,-230.48668418,0.000243,7]
[370108097,1751887844208,-151.0,0.000243,7]
[370108098,1751887844217,-151.0,0.000243,7]
[370108099,1751887844226,-151.0,0.000243,7]
[370108100,1751887844239,-151.0,0.000243,7]
[370108101,1751887844248,-151.0,0.000243,7]
[370108102,1751887844257,-189.263538,0.000243,7]
[370108103,1751887844266,-151.0,0.000243,7]
[370108104,1751887844277,-151.0,0.000243,7]
[370108105,1751887844286,-1862.67,0.00024313,7]
[370108106,1751887844296,-283.0,0.00024323,2]
[370108107,1751887844306,-283.0,0.00024324,2]
[370108108,1751887844315,-200.94537279,0.00024356,2]
[370108109,1751887844325,-1656.383922,0.0002437,4]
[370108110,1751887844334,-1233.25,0.00024383,2]
[370108111,1751887844343,-3967.07919496,0.0002439,2]
[370108112,1751887844353,-158.78749159,0.00024411,2]
[370108113,1751887844362,-151.0,0.00024412,7]
[370108114,1751887844371,-1862.67,0.00024413,2]
[370108115,1751887844380,-366.6942869,0.00024424,2]
[370108116,1751887844389,-366.6942869,0.00024424,2]
[370108117,1751887844399,-366.6942869,0.00024424,2]
[370108118,1751887844409,-366.6942869,0.00024424,2]
[370108120,1751887844418,-366.6942869,0.00024424,2]
[370108122,1751887844427,-366.6942869,0.00024424,2]
[370108124,1751887844436,-366.6942869,0.00024424,2]
[370108125,1751887844446,-802.0541433,0.00024424,2]
[370108126,1751887844456,-366.6942869,0.00024424,2]
[370108127,1751887844466,-576.0368563,0.00024424,2]
[370108128,1751887844476,-159.4922776,0.00024424,2]
[370108129,1751887844485,-306.0,0.00024424,2]
[370108130,1751887844495,-1152.0737126,0.00024424,2]
[370108131,1751887844504,-159.4922776,0.00024424,2]
[370108132,1751887844514,-576.0368563,0.00024424,2]
[370108133,1751887844524,-159.4922776,0.00024424,2]
[370108134,1751887844533,-460.0,0.00024449,2]
[370108135,1751887844543,-200.94537279,0.00024466,2]
[370108136,1751887844553,-600.0,0.00024483,2]
[370108137,1751887844563,-9781.80335578,0.000245,2]
[370108138,1751887844573,-200.0,0.000245,2]
[370108139,1751887844582,-283.0,0.00024511,2]
[370108141,1751887844593,-1862.67,0.00024513,5]
[370108143,1751887844602,-283.0,0.00024564,2]
[370108145,1751887844613,-203.44881739,0.00024567,11]
[370108147,1751887844622,-512.7884035,0.00024568,2]
[370108149,1751887844632,-153.0,0.0002457,2]
[370108151,1751887844642,-153.0,0.0002457,2]
[370108153,1751887844656,-153.0,0.0002457,2]
[370108155,1751887844666,-200.94537279,0.00024575,2]
[370108157,1751887844676,-283.0,0.00024588,2]
[370108159,1751887844686,-1862.67,0.00024613,7]
[370108161,1751887844696,-283.0,0.0002464,2]
[370108164,1751887844705,-76028.12985717,0.0002465,2]
[370108165,1751887844716,-501.10567785,0.0002465,2]
[370108167,1751887844725,-1233.25,0.00024657,2]
[370108169,1751887844735,-407.31476207,0.00024658,2]
[370108172,1751887844745,-1629.25904827,0.00024658,2]
[370108174,1751887844755,-3662.16702576,0.00024658,2]
[370108176,1751887844764,-151.0,0.00024658,2]
[370108178,1751887844774,-500.0,0.00024658,2]
[370108180,1751887844784,-477.17981872,0.00024658,2]
[370108182,1751887844794,-500.0,0.00024658,2]
[370108184,1751887844805,-500.0,0.00024658,2]
[370108186,1751887844815,-500.0,0.00024658,2]
[370108188,1751887844825,-500.0,0.00024658,2]
[370108190,1751887844834,-200.94537279,0.00024685,2]
[370108192,1751887844844,-151.0,0.00024685,2]
[370108194,1751887844854,-198.0,0.00024713,2]
[370108196,1751887844864,-1862.67,0.00024713,7]
[370108198,1751887844874,-176.35,0.00024723,2]
[370108200,1751887844883,-223.0315306,0.00024738,2]
[370108202,1751887844893,-384.79417944,0.00024738,2]
[370108206,1751887844919,-516.73288341,0.00024738,2]
[370108208,1751887844928,-151.0,0.00024774,7]
[370108210,1751887844937,-160.0,0.000248,7]
[370108212,1751887844947,-1812.59,0.000248,7]
[370108214,1751887844956,-1750.250815,0.000248,2]
[370108216,1751887844966,-336.169621,0.000248,30]
[370108218,1751887844975,-160.0,0.000248,7]
[370108220,1751887844985,-46611.50605436,0.000248,7]
[370108222,1751887844995,-151.0,0.000248,7]
[370108224,1751887845004,-151.0,0.000248,7]
[370108226,1751887845014,-200.0,0.0002481,12]
[370108228,1751887845024,-1862.67,0.00024813,5]
[370108230,1751887845033,-283.0,0.00024822,2]
[370108232,1751887845043,-200.94537279,0.00024822,2]
[370108234,1751887845053,-218.875068,0.00024838,7]
[370108236,1751887845062,-218.875068,0.00024838,7]
[370108238,1751887845072,-691.0,0.00024838,2]
[370108240,1751887845083,-500.0,0.00024899,9]
[370108242,1751887845093,-52654.38511744,0.00024899,4]
[370108260,1751887845738,-500.0,0.00021918,2]
[370108262,1751887845748,-500.0,0.00021918,2]
[370108264,1751887845758,-500.0,0.00021918,2]
[370108266,1751887845768,-118.16963289,0.00021918,2]
[370108291,1751887845987,-381.83036711,0.00021918,2]
[370108293,1751887845997,-50.32776928,0.00021918,2]
[370108299,1751887846163,-492.44229626,0.00019178,2]
[370108300,1751887846172,-415.55827039,0.00019178,2]
[370108301,1751887846182,-449.67223072,0.00021918,2]
[370108302,1751887846191,-151.0,0.00022,2]
[370108303,1751887846201,-151.0,0.00022,2]
[370108304,1751887846211,-151.0,0.00022,2]
[370108305,1751887846220,-151.0,0.00022,2]
[370108306,1751887846233,-151.0,0.00022,2]
[370108307,1751887846242,-20.99342243,0.00022,2]
[370108308,1751887846254,-130.00657757,0.00022,2]
[370108309,1751887846263,-2751.19350225,0.00022,7]
[370108310,1751887846276,-720.944384,0.00022,7]
[370108361,1751887924653,164.904123,0.00013699,2]
[370108386,1751888081824,10107.0,0.00025149,60]
[370108399,1751888373247,8511.37,0.000168,2]
[370108421,1751888465948,150.0,0.00027397,120]
[370108423,1751888651266,198.0,0.00025156,120]
[370108426,1751888733820,-158.333429,0.00017966,2]
[370108427,1751888733844,-2572.41014314,0.00018251,6]
[370108428,1751888733866,-91.54707109,0.00018622,2]
[370108433,1751888953183,-203.8192368,0.00018243,2]
[370108434,1751888953204,-549.46243539,0.00018622,2]
[370108435,1751888953223,-159.98568789,0.0001881,2]
[370108436,1751888953243,-255.0,0.0001891,2]
[370108437,1751888953261,-255.0,0.00018915,2]
[370108438,1751888953280,-255.0,0.0001892,2]
[370108439,1751888953300,-255.0,0.00018925,2]
[370108440,1751888953320,-211.75328903,0.0001893,2]
[370108441,1751889002202,164.904123,0.00013699,2]
[370108485,1751889032226,-43.24671097,0.0001893,2]
[370108487,1751889032240,-494.45178461,0.00018934,2]
[370108490,1751889032251,-220.68884846,0.00018935,2]
[370108492,1751889032262,-527.0,0.00019032,2]
[370108494,1751889032273,-300.0,0.00019032,2]
[370108496,1751889032285,-300.0,0.00019032,2]
[370108499,1751889032297,-383.0,0.00019032,2]
[370108501,1751889032308,-153.0,0.00019032,2]
[370108503,1751889032320,-11167.0497949,0.00019033,2]
[370108505,1751889032331,-500.0,0.00019033,2]
[370108507,1751889032342,-590.95211103,0.00019033,2]
[370108510,1751889032354,-375.00763976,0.00019033,2]
[370108513,1751889032366,-500.0,0.00019033,2]
[370108516,1751889032379,-405.06544694,0.00019033,2]
[370108520,1751889032390,-590.95211103,0.00019033,2]
[370108523,1751889032401,-500.0,0.00019033,2]
[370108526,1751889032412,-590.95211103,0.00019033,2]
[370108528,1751889032423,-279.76975589,0.00019033,2]
[370108531,1751889032435,-590.95211103,0.00019033,2]
[370108533,1751889032446,-516.3070846,0.00019033,2]
[370108535,1751889032457,-590.95211103,0.00019033,2]
[370108537,1751889032468,-590.95211103,0.00019033,2]
[370108539,1751889032479,-590.95211103,0.00019033,2]
[370108542,1751889032491,-590.95211103,0.00019033,2]
[370108544,1751889032503,-590.95211103,0.00019033,2]
[370108546,1751889032513,-590.95211103,0.00019033,2]
[370108548,1751889032524,-590.95211103,0.00019033,2]
[370108550,1751889032536,-590.95211103,0.00019033,2]
[370108552,1751889032545,-590.95211103,0.00019033,2]
[370108554,1751889032556,-590.95211103,0.00019033,2]
[370108557,1751889032566,-590.95211103,0.00019033,2]
[370108559,1751889032578,-590.95211103,0.00019033,2]
[370108561,1751889032589,-590.95211103,0.00019033,2]
[370108563,1751889032599,-590.95211103,0.00019033,2]
[370108565,1751889032610,-590.95211103,0.00019033,2]
[370108568,1751889032623,-590.95211103,0.00019033,2]
[370108570,1751889032634,-590.95211103,0.00019033,2]
[370108572,1751889032645,-590.95211103,0.00019033,2]
[370108574,1751889032656,-590.95211103,0.00019033,2]
[370108576,1751889032667,-590.95211103,0.00019033,2]
[370108579,1751889032679,-590.95211103,0.00019033,2]
[370108581,1751889032691,-590.95211103,0.00019033,2]
[370108583,1751889032703,-590.95211103,0.00019033,2]
[370108586,1751889032715,-590.95211103,0.00019033,2]
[370108588,1751889032726,-590.95211103,0.00019033,2]
[370108590,1751889032739,-590.95211103,0.00019033,2]
[370108593,1751889032753,-590.95211103,0.00019033,2]
[370108595,1751889032763,-590.95211103,0.00019033,2]
[370108597,1751889032773,-590.95211103,0.00019033,2]
[370108599,1751889032783,-590.95211103,0.00019033,2]
[370108601,1751889032793,-590.95211103,0.00019033,2]
[370108603,1751889032804,-590.95211103,0.00019033,2]
[370108605,1751889032815,-590.95211103,0.00019033,2]
[370108608,1751889032828,-590.95211103,0.00019033,2]
[370108610,1751889032841,-590.95211103,0.00019033,2]
[370108612,1751889032852,-590.95211103,0.00019033,2]
[370108615,1751889032864,-590.95211103,0.00019033,2]
[370108617,1751889032874,-590.95211103,0.00019033,2]
[370108619,1751889032885,-105.49410161,0.00019033,2]
[370109106,1751889038200,-180.59514429,0.00019032,2]
[370109107,1751889038209,-200.52,0.00019033,3]
[370109109,1751889038219,-601.56,0.00019033,3]
[370109111,1751889038228,-207.94613675,0.00019041,2]
[370109113,1751889038237,-500.0,0.00019042,2]
[370109115,1751889038247,-500.0,0.00019042,2]
[370109117,1751889038255,-200.31382204,0.00019042,2]
[370109118,1751889038264,-151.0,0.00019042,2]
[370109120,1751889038274,-500.0,0.00019042,2]
[370109122,1751889038283,-151.0,0.00019042,2]
[370109124,1751889038293,-151.0,0.00019042,2]
[370109126,1751889038302,-151.0,0.00019042,2]
[370109128,1751889038312,-151.53734073,0.00019042,2]
[370109129,1751889038320,-151.0,0.00019042,2]
[370109131,1751889038329,-172778.13539719,0.00019043,2]
[370109133,1751889038339,-500.0,0.00019069,2]
[370109135,1751889038348,-500.0,0.00019069,2]
[370109137,1751889038358,-151.0,0.00019069,2]
[370109139,1751889038367,-1177.20447148,0.00019078,2]
[370109140,1751889038377,-27230.18666844,0.00019078,2]
[370109142,1751889038386,-500.0,0.00019097,2]
[370109144,1751889038396,-500.0,0.00019097,2]
[370109146,1751889038405,-151.0,0.00019097,2]
[370109148,1751889038414,-500.0,0.00019124,2]
[370109149,1751889038424,-500.0,0.00019124,2]
[370109151,1751889038433,-151.0,0.00019124,2]
[370109153,1751889038442,-500.0,0.00019152,2]
[370109155,1751889038451,-500.0,0.00019152,2]
[370109157,1751889038461,-151.0,0.00019152,2]
[370109159,1751889038471,-500.0,0.00019173,2]
[370109161,1751889038481,-500.0,0.00019173,2]
[370109163,1751889038490,-460.0,0.00019178,2]
[370109165,1751889038499,-460.0,0.00019178,2]
[370109167,1751889038508,-460.0,0.00019178,2]
[370109168,1751889038517,-460.0,0.00019178,2]
[370109169,1751889038526,-460.0,0.00019178,2]
[370109170,1751889038535,-193.20020826,0.00019178,2]
[370109171,1751889038544,-460.0,0.00019178,2]
[370109172,1751889038553,-460.0,0.00019178,2]
[370109173,1751889038562,-460.0,0.00019178,2]
[370109174,1751889038571,-460.0,0.00019178,2]
[370109175,1751889038580,-460.0,0.00019178,2]
[370109176,1751889038589,-460.0,0.00019178,2]
[370109177,1751889038598,-460.0,0.00019178,2]
[370109178,1751889038608,-460.0,0.00019178,2]
[370109179,1751889038617,-460.0,0.00019178,2]
[370109180,1751889038626,-460.0,0.00019178,2]
[370109181,1751889038635,-460.0,0.00019178,2]
[370109182,1751889038644,-460.0,0.00019178,2]
[370109183,1751889038653,-500.39097845,0.00019178,2]
[370109184,1751889038663,-460.0,0.00019178,2]
[370109185,1751889038672,-460.0,0.00019178,2]
[370109186,1751889038682,-460.0,0.00019178,2]
[370109187,1751889038692,-460.0,0.00019178,2]
[370109188,1751889038701,-460.0,0.00019178,2]
[370109189,1751889038710,-460.0,0.00019178,2]
[370109190,1751889038719,-460.0,0.00019178,2]
[370109191,1751889038728,-460.0,0.00019178,2]
[370109192,1751889038737,-460.0,0.00019178,2]
[370109193,1751889038746,-460.0,0.00019178,2]
[370109194,1751889038760,-460.0,0.00019178,2]
[370109195,1751889038769,-460.0,0.00019178,2]
[370109196,1751889038779,-460.0,0.00019178,2]
[370109197,1751889038788,-460.0,0.00019178,2]
[370109198,1751889038797,-460.0,0.00019178,2]
[370109199,1751889038806,-460.0,0.00019178,2]
[370109200,1751889038815,-460.0,0.00019178,2]
[370109201,1751889038824,-460.0,0.00019178,2]